[Event "SS Manhem Chess Week 2022: Goteborg Open"]
[Site "Schackcentrum, Vegagatan 20, Gothenburg, Sweden"]
[Date "2022.08.12"]
[Round "4.9"]
[White "Hammar, Arvid"]
[Black "Asbrink, Adam"]
[Result "0-1"]
[TimeControl "15 minutes + 5 seconds per move from move one (Round 1 - 4) / 90 minutes + 30 seconds per move from move one (Round 5 - 8)"]
[WhiteFideId "1735977"]
[BlackFideId "1767410"]
[WhiteElo "1384"]
[BlackElo "1977"]

1. c4 {[%clk 00:15:07]} {[%emt 00:00:01]} c6 {[%clk 00:15:08]} {[%emt
00:00:02]} 2. d4 {[%clk 00:15:09]} {[%emt 00:00:04]} d5 {[%clk 00:15:11]} 3.
cxd5 {[%clk 00:15:06]} {[%emt 00:00:08]} cxd5 {[%clk 00:15:14]} {[%emt
00:00:02]} 4. Nc3 {[%clk 00:15:01]} {[%emt 00:00:10]} Nf6 {[%clk 00:15:17]}
{[%emt 00:00:03]} 5. g3 {[%clk 00:14:59]} {[%emt 00:00:06]} Nc6 {[%clk
00:15:17]} {[%emt 00:00:05]} 6. Nf3 {[%clk 00:14:51]} {[%emt 00:00:13]} Bf5
{[%clk 00:14:53]} {[%emt 00:00:29]} 7. Bg2 {[%clk 00:14:41]} {[%emt 00:00:16]}
h6 {[%clk 00:14:53]} {[%emt 00:00:04]} 8. O-O {[%clk 00:14:27]} {[%emt
00:00:19]} e6 {[%clk 00:14:56]} {[%emt 00:00:03]} 9. Bf4 {[%clk 00:14:04]}
{[%emt 00:00:27]} Qb6 {[%clk 00:14:39]} {[%emt 00:00:22]} 10. Na4 {[%clk
00:13:13]} {[%emt 00:00:56]} Qa5 {[%clk 00:13:32]} {[%emt 00:01:13]} 11. b3
{[%clk 00:12:54]} {[%emt 00:00:23]} Be7 {[%clk 00:13:20]} {[%emt 00:00:17]} 12.
Rc1 {[%clk 00:11:41]} {[%emt 00:01:18]} Ba3 {[%clk 00:12:54]} {[%emt 00:00:31]}
13. Bd2 {[%clk 00:09:11]} {[%emt 00:02:34]} Qd8 {[%clk 00:12:46]} {[%emt
00:00:14]} 14. Rc3 {[%clk 00:08:17]} {[%emt 00:00:59]} Ne4 {[%clk 00:12:41]}
{[%emt 00:00:09]} 15. Re3 {[%clk 00:07:55]} {[%emt 00:00:27]} O-O {[%clk
00:12:32]} {[%emt 00:00:15]} 16. Bc1 {[%clk 00:07:11]} {[%emt 00:00:49]} Qe7
{[%clk 00:10:06]} {[%emt 00:02:30]} 17. Nh4 {[%clk 00:06:27]} {[%emt 00:00:50]}
Bh7 {[%clk 00:10:03]} {[%emt 00:00:08]} 18. f3 {[%clk 00:05:47]} {[%emt
00:00:44]} Nf6 {[%clk 00:09:59]} {[%emt 00:00:10]} 19. g4 {[%clk 00:05:37]}
{[%emt 00:00:13]} Bxc1 {[%clk 00:09:37]} {[%emt 00:00:29]} 20. Qxc1 {[%clk
00:05:15]} {[%emt 00:00:27]} Nxd4 {[%clk 00:09:38]} {[%emt 00:00:04]} 21. Rd1
{[%clk 00:04:52]} {[%emt 00:00:26]} Rac8 {[%clk 00:09:28]} {[%emt 00:00:17]} 22.
Qb2 {[%clk 00:04:34]} {[%emt 00:00:23]} Nc6 {[%clk 00:07:32]} {[%emt 00:02:01]}
23. Nf5 {[%clk 00:02:50]} {[%emt 00:01:49]} Qc7 {[%clk 00:07:08]} {[%emt
00:00:27]} 24. Nxh6+ {[%clk 00:02:05]} {[%emt 00:00:52]} gxh6 {[%clk 00:06:52]}
{[%emt 00:00:21]} 25. Qxf6 {[%clk 00:02:05]} {[%emt 00:00:05]} d4 {[%clk
00:06:41]} {[%emt 00:00:16]} 26. Rxe6 {[%clk 00:01:10]} {[%emt 00:00:59]} fxe6
{[%clk 00:06:30]} {[%emt 00:00:17]} 27. Qxe6+ {[%clk 00:01:12]} {[%emt
00:00:03]} Qf7 {[%clk 00:05:49]} {[%emt 00:00:46]} 28. Qxh6 {[%clk 00:01:13]}
{[%emt 00:00:04]} Rce8 {[%clk 00:05:07]} {[%emt 00:00:48]} 29. Re1 {[%clk
00:00:52]} {[%emt 00:00:25]} d3 {[%clk 00:05:02]} {[%emt 00:00:10]} 30. e3
{[%clk 00:00:47]} {[%emt 00:00:11]} Qf6 {[%clk 00:04:32]} {[%emt 00:00:35]} 31.
Qh3 {[%clk 00:00:41]} {[%emt 00:00:10]} Rxe3 {[%clk 00:02:43]} 32. Rd1 {[%clk
00:00:25]} {[%emt 00:02:16]} Qd4 {[%clk 00:02:42]} {[%emt 00:00:06]} 33. Kf1
{[%clk 00:00:22]} {[%emt 00:00:08]} d2 {[%clk 00:02:43]} {[%emt 00:00:03]} 34.
Qg3 {[%clk 00:00:24]} {[%emt 00:00:03]} Bd3+ {[%clk 00:02:43]} {[%emt
00:00:05]} 35. Kg1 {[%clk 00:00:28]} {[%emt 00:00:02]} Re1# {[%clk 00:02:32]}
{[%emt 00:00:02]} 0-1

[Event "SS Manhem Chess Week 2022: Goteborg Open"]
[Site "Schackcentrum, Vegagatan 20, Gothenburg, Sweden"]
[Date "2022.08.12"]
[Round "4.12"]
[White "Shchetinin, Oleg"]
[Black "Andreasson, Henrik"]
[Result "1-0"]
[TimeControl "15 minutes + 5 seconds per move from move one (Round 1 - 4) / 90 minutes + 30 seconds per move from move one (Round 5 - 8)"]
[WhiteFideId "1740210"]
[BlackFideId "1766082"]
[WhiteElo "1643"]
[BlackElo "1126"]

1. d4 {[%clk 00:15:07]} {[%emt 00:00:02]} Nf6 {[%clk 00:15:07]} {[%emt
00:00:05]} 2. Nf3 {[%clk 00:15:05]} {[%emt 00:00:06]} g6 {[%clk 00:15:11]} 3.
Bf4 {[%clk 00:14:48]} {[%emt 00:00:21]} d6 {[%clk 00:15:13]} {[%emt 00:00:04]}
4. Nbd2 {[%clk 00:14:43]} {[%emt 00:00:09]} Bg7 {[%clk 00:15:02]} {[%emt
00:00:16]} 5. c3 {[%clk 00:14:30]} {[%emt 00:00:18]} Nbd7 {[%clk 00:15:00]}
{[%emt 00:00:08]} 6. e3 {[%clk 00:14:00]} {[%emt 00:00:34]} O-O {[%clk
00:15:01]} {[%emt 00:00:04]} 7. Be2 {[%clk 00:13:36]} {[%emt 00:00:29]} a6
{[%clk 00:14:54]} {[%emt 00:00:13]} 8. O-O {[%clk 00:13:36]} {[%emt 00:00:03]}
b5 {[%clk 00:14:57]} {[%emt 00:00:03]} 9. a4 {[%clk 00:13:24]} {[%emt
00:00:18]} c6 {[%clk 00:14:18]} {[%emt 00:00:43]} 10. axb5 {[%clk 00:13:23]}
{[%emt 00:00:06]} cxb5 {[%clk 00:14:18]} {[%emt 00:00:05]} 11. Bxb5 {[%clk
00:13:26]} {[%emt 00:00:02]} Qb6 {[%clk 00:13:23]} {[%emt 00:01:00]} 12. Bxd7
{[%clk 00:13:23]} {[%emt 00:00:08]} Bxd7 {[%clk 00:13:09]} {[%emt 00:00:19]} 13.
b3 {[%clk 00:11:32]} {[%emt 00:01:56]} Bg4 {[%clk 00:12:34]} {[%emt 00:00:40]}
14. h3 {[%clk 00:11:07]} {[%emt 00:00:30]} Bd7 {[%clk 00:12:07]} {[%emt
00:00:31]} 15. e4 {[%clk 00:09:24]} {[%emt 00:01:49]} Rfc8 {[%clk 00:11:10]}
{[%emt 00:01:03]} 16. Nc4 {[%clk 00:08:32]} {[%emt 00:00:57]} Qc7 {[%clk
00:10:56]} {[%emt 00:00:19]} 17. e5 {[%clk 00:08:26]} {[%emt 00:00:11]} Ne8
{[%clk 00:10:00]} {[%emt 00:01:00]} 18. exd6 {[%clk 00:08:18]} {[%emt
00:00:13]} Nxd6 {[%clk 00:09:22]} {[%emt 00:00:43]} 19. Nxd6 {[%clk 00:08:05]}
{[%emt 00:00:17]} exd6 {[%clk 00:09:25]} {[%emt 00:00:03]} 20. Rc1 {[%clk
00:07:26]} {[%emt 00:00:43]} Bf8 {[%clk 00:08:53]} {[%emt 00:00:37]} 21. c4
{[%clk 00:07:10]} {[%emt 00:00:21]} Qb7 {[%clk 00:08:27]} {[%emt 00:00:31]} 22.
d5 {[%clk 00:06:01]} {[%emt 00:01:15]} a5 {[%clk 00:07:41]} {[%emt 00:00:52]}
23. Nd2 {[%clk 00:05:45]} {[%emt 00:00:20]} a4 {[%clk 00:07:25]} {[%emt
00:00:21]} 24. bxa4 {[%clk 00:05:32]} {[%emt 00:00:18]} Rxa4 {[%clk 00:07:00]}
{[%emt 00:00:30]} 25. Rb1 {[%clk 00:04:34]} {[%emt 00:01:03]} Qc7 {[%clk
00:06:31]} {[%emt 00:00:34]} 26. Qb3 {[%clk 00:04:16]} {[%emt 00:00:22]} Rxc4
{[%clk 00:05:17]} {[%emt 00:01:19]} 27. Nxc4 {[%clk 00:04:16]} {[%emt
00:00:05]} Qxc4 {[%clk 00:05:21]} {[%emt 00:00:02]} 28. Qxc4 {[%clk 00:04:15]}
{[%emt 00:00:06]} Rxc4 {[%clk 00:05:25]} 29. Bg3 {[%clk 00:04:10]} {[%emt
00:00:10]} Bh6 {[%clk 00:03:48]} {[%emt 00:01:43]} 30. Bxd6 {[%clk 00:03:51]}
{[%emt 00:00:23]} Kg7 {[%clk 00:02:59]} {[%emt 00:00:54]} 31. Rb7 {[%clk
00:03:38]} {[%emt 00:00:18]} Bf5 {[%clk 00:02:45]} {[%emt 00:00:19]} 32. Be5+
{[%clk 00:03:39]} {[%emt 00:00:04]} Kf8 {[%clk 00:02:36]} {[%emt 00:00:14]} 33.
d6 {[%clk 00:03:16]} {[%emt 00:00:28]} Rc8 {[%clk 00:02:24]} {[%emt 00:00:17]}
34. Rd1 {[%clk 00:02:47]} {[%emt 00:00:28]} Bg5 {[%clk 00:01:49]} {[%emt
00:00:45]} 35. f4 {[%clk 00:02:09]} {[%emt 00:00:43]} Bd8 {[%clk 00:01:31]}
{[%emt 00:00:23]} 36. Ra1 {[%clk 00:01:44]} {[%emt 00:00:30]} Rc2 {[%clk
00:01:14]} {[%emt 00:00:23]} 37. Ra8 {[%clk 00:01:30]} {[%emt 00:00:19]} Ke8
{[%clk 00:01:11]} {[%emt 00:00:08]} 38. Rbb8 {[%clk 00:01:27]} {[%emt
00:00:09]} Kd7 {[%clk 00:00:19]} {[%emt 00:00:56]} 39. Rxd8+ {[%clk 00:01:29]}
{[%emt 00:00:03]} Ke6 {[%clk 00:00:23]} {[%emt 00:00:01]} 40. Re8+ {[%clk
00:01:30]} {[%emt 00:00:04]} Kd5 {[%clk 00:00:26]} {[%emt 00:00:02]} 41. Ra5+
{[%clk 00:01:32]} {[%emt 00:00:02]} Ke4 {[%clk 00:00:29]} {[%emt 00:00:02]} 42.
Ra4+ {[%clk 00:01:30]} {[%emt 00:00:08]} Ke3 {[%clk 00:00:23]} {[%emt
00:00:11]} 43. Bd4+ {[%clk 00:01:24]} {[%emt 00:00:09]} Kd2 {[%clk 00:00:25]}
{[%emt 00:00:05]} 44. Be3+ {[%clk 00:01:21]} {[%emt 00:00:08]} Ke2 {[%clk
00:00:23]} {[%emt 00:00:07]} 45. Re7 {[%clk 00:01:18]} {[%emt 00:00:08]} Be6
{[%clk 00:00:21]} {[%emt 00:00:07]} 46. Rxe6 {[%clk 00:01:15]} {[%emt
00:00:08]} fxe6 {[%clk 00:00:23]} {[%emt 00:00:03]} 47. d7 {[%clk 00:01:20]}
1-0

[Event "SS Manhem Chess Week 2022: Goteborg Open"]
[Site "Schackcentrum, Vegagatan 20, Gothenburg, Sweden"]
[Date "2022.08.12"]
[Round "4.13"]
[White "Karlsson, Stefan"]
[Black "Ghaderi, Noan"]
[Result "0-1"]
[TimeControl "15 minutes + 5 seconds per move from move one (Round 1 - 4) / 90 minutes + 30 seconds per move from move one (Round 5 - 8)"]
[WhiteFideId "1771183"]
[BlackFideId "1747096"]
[WhiteElo "1560"]
[BlackElo "1367"]

1. e4 {[%clk 00:15:09]} {[%emt 00:25:14]} c6 {[%clk 00:15:10]} 2. d4 {[%clk
00:15:14]} d5 {[%clk 00:15:14]} 3. e5 {[%clk 00:15:18]} Bf5 {[%clk 00:15:18]}
{[%emt 00:00:03]} 4. h4 {[%clk 00:15:17]} {[%emt 00:00:06]} h6 {[%clk
00:15:11]} {[%emt 00:00:12]} 5. c4 {[%clk 00:15:10]} {[%emt 00:00:11]} e6
{[%clk 00:15:04]} {[%emt 00:00:13]} 6. Nc3 {[%clk 00:15:13]} {[%emt 00:00:02]}
Nd7 {[%clk 00:14:47]} {[%emt 00:00:22]} 7. cxd5 {[%clk 00:15:16]} {[%emt
00:00:02]} cxd5 {[%clk 00:14:48]} {[%emt 00:00:03]} 8. Bd3 {[%clk 00:14:45]}
{[%emt 00:00:35]} Bxd3 {[%clk 00:14:43]} {[%emt 00:00:10]} 9. Qxd3 {[%clk
00:14:49]} {[%emt 00:00:02]} Ne7 {[%clk 00:14:30]} {[%emt 00:00:19]} 10. Nf3
{[%clk 00:14:43]} {[%emt 00:00:10]} Nc6 {[%clk 00:14:19]} {[%emt 00:00:16]} 11.
a3 {[%clk 00:14:46]} {[%emt 00:00:02]} Be7 {[%clk 00:13:43]} {[%emt 00:00:41]}
12. g4 {[%clk 00:14:30]} {[%emt 00:00:19]} Rc8 {[%clk 00:13:08]} {[%emt
00:00:42]} 13. g5 {[%clk 00:14:13]} {[%emt 00:00:22]} hxg5 {[%clk 00:13:10]}
{[%emt 00:00:02]} 14. Bxg5 {[%clk 00:13:55]} {[%emt 00:00:23]} Bxg5 {[%clk
00:13:14]} {[%emt 00:00:01]} 15. Nxg5 {[%clk 00:13:59]} Qxg5 {[%clk 00:13:18]}
{[%emt 00:00:02]} 16. hxg5 {[%clk 00:14:03]} {[%emt 00:00:01]} Rxh1+ {[%clk
00:13:21]} {[%emt 00:00:01]} 17. Ke2 {[%clk 00:14:00]} {[%emt 00:00:09]} Rxa1
{[%clk 00:13:25]} {[%emt 00:00:01]} 18. Nb5 {[%clk 00:13:34]} {[%emt 00:00:31]}
Ke7 {[%clk 00:12:13]} {[%emt 00:01:18]} 19. g6 {[%clk 00:12:36]} {[%emt
00:01:02]} f6 {[%clk 00:11:57]} {[%emt 00:00:21]} 20. f4 {[%clk 00:12:24]}
{[%emt 00:00:17]} a6 {[%clk 00:11:46]} {[%emt 00:00:17]} 21. Nd6 {[%clk
00:12:27]} {[%emt 00:00:01]} Rh8 {[%clk 00:11:49]} {[%emt 00:00:02]} 22. Kd2
{[%clk 00:12:22]} {[%emt 00:00:10]} Rh2+ {[%clk 00:11:43]} {[%emt 00:00:11]} 23.
Kc3 {[%clk 00:12:26]} {[%emt 00:00:01]} Rc1+ {[%clk 00:11:35]} {[%emt
00:00:13]} 24. Kb3 {[%clk 00:12:24]} {[%emt 00:00:07]} Rcc2 {[%clk 00:09:12]}
{[%emt 00:02:28]} 25. Nc8+ {[%clk 00:11:27]} {[%emt 00:01:01]} Kd8 {[%clk
00:09:11]} {[%emt 00:00:07]} 26. Nd6 {[%clk 00:11:30]} {[%emt 00:00:02]} Rxb2+
{[%clk 00:09:10]} {[%emt 00:00:06]} 27. Kc3 {[%clk 00:11:34]} {[%emt 00:00:01]}
Na5 {[%clk 00:08:11]} {[%emt 00:01:04]} 28. Qd1 {[%clk 00:11:33]} {[%emt
00:00:05]} Rb3+ {[%clk 00:07:55]} {[%emt 00:00:21]} 29. Qxb3 {[%clk 00:11:37]}
{[%emt 00:00:02]} Nxb3 {[%clk 00:08:00]} {[%emt 00:00:01]} 30. Kxb3 {[%clk
00:11:40]} {[%emt 00:00:01]} fxe5 {[%clk 00:07:44]} {[%emt 00:00:19]} 31. fxe5
{[%clk 00:11:29]} {[%emt 00:00:17]} Rh4 {[%clk 00:07:15]} {[%emt 00:00:33]} 32.
Kc3 {[%clk 00:11:16]} {[%emt 00:00:19]} Rh3+ {[%clk 00:06:54]} {[%emt
00:00:27]} 33. Kb4 {[%clk 00:11:15]} {[%emt 00:00:06]} a5+ {[%clk 00:06:24]}
{[%emt 00:00:35]} 34. Kxa5 {[%clk 00:11:03]} {[%emt 00:00:16]} Rxa3+ {[%clk
00:06:28]} {[%emt 00:00:02]} 35. Kb4 {[%clk 00:11:04]} {[%emt 00:00:05]} Rg3
{[%clk 00:06:24]} {[%emt 00:00:09]} 36. Nxb7+ {[%clk 00:10:44]} {[%emt
00:00:24]} Kc7 {[%clk 00:06:26]} {[%emt 00:00:03]} 37. Nd6 {[%clk 00:10:44]}
{[%emt 00:00:05]} Rxg6 {[%clk 00:06:24]} {[%emt 00:00:08]} 38. Ne8+ {[%clk
00:10:32]} {[%emt 00:00:16]} Kc6 {[%clk 00:06:27]} {[%emt 00:00:02]} 39. Kc3
{[%clk 00:10:31]} {[%emt 00:00:06]} Nb6 {[%clk 00:06:13]} {[%emt 00:00:19]} 40.
Nd6 {[%clk 00:10:32]} {[%emt 00:00:04]} Nc4 {[%clk 00:05:44]} {[%emt 00:00:35]}
41. Nc8 {[%clk 00:10:25]} {[%emt 00:00:12]} Rg3+ {[%clk 00:05:38]} {[%emt
00:00:12]} 42. Kb4 {[%clk 00:10:27]} {[%emt 00:00:03]} Rd3 {[%clk 00:05:32]}
{[%emt 00:00:11]} 43. Na7+ {[%clk 00:10:25]} {[%emt 00:00:07]} Kb7 {[%clk
00:05:35]} {[%emt 00:00:02]} 44. Nb5 {[%clk 00:10:29]} {[%emt 00:00:01]} Rd2
{[%clk 00:05:28]} {[%emt 00:00:12]} 45. Kc3 {[%clk 00:10:29]} {[%emt 00:00:04]}
Rf2 {[%clk 00:05:18]} {[%emt 00:00:16]} 46. Kb4 {[%clk 00:10:26]} {[%emt
00:00:08]} Rb2+ {[%clk 00:05:14]} {[%emt 00:00:09]} 47. Kc5 {[%clk 00:10:30]}
{[%emt 00:00:01]} Rxb5+ {[%clk 00:05:11]} {[%emt 00:00:08]} 48. Kxb5 {[%clk
00:10:33]} {[%emt 00:00:02]} g5 {[%clk 00:05:16]} 49. Kc5 {[%clk 00:10:23]}
{[%emt 00:00:15]} g4 {[%clk 00:05:18]} {[%emt 00:00:03]} 50. Kb4 {[%clk
00:10:27]} {[%emt 00:00:01]} g3 {[%clk 00:05:22]} 51. Kc5 {[%clk 00:10:31]} g2
{[%clk 00:05:26]} {[%emt 00:00:01]} 52. Kb4 {[%clk 00:10:35]} {[%emt 00:00:01]}
g1=Q {[%clk 00:03:46]} {[%emt 00:00:04]} 53. Kc5 {[%clk 00:10:38]} {[%emt
00:01:43]} Qe1 {[%clk 00:03:39]} {[%emt 00:00:12]} 54. Kb5 {[%clk 00:10:37]}
{[%emt 00:00:06]} Qa5# {[%emt 00:00:02]} 0-1

[Event "SS Manhem Chess Week 2022: Goteborg Open"]
[Site "Schackcentrum, Vegagatan 20, Gothenburg, Sweden"]
[Date "2022.08.12"]
[Round "4.14"]
[White "Degerfeldt, Sven"]
[Black "Imani Lasaki, Hamed"]
[Result "0-1"]
[TimeControl "15 minutes + 5 seconds per move from move one (Round 1 - 4) / 90 minutes + 30 seconds per move from move one (Round 5 - 8)"]
[WhiteFideId "1717430"]
[BlackFideId "1766970"]
[WhiteElo "1842"]
[BlackElo "1577"]

1. d4 {[%clk 00:15:07]} {[%emt 00:00:01]} d5 {[%clk 00:15:09]} {[%emt
00:00:02]} 2. Nf3 {[%clk 00:15:10]} {[%emt 00:00:02]} Nf6 {[%clk 00:15:13]}
{[%emt 00:00:02]} 3. g3 {[%clk 00:15:06]} {[%emt 00:00:07]} g6 {[%clk
00:15:17]} {[%emt 00:00:02]} 4. Bg2 {[%clk 00:15:10]} Bg7 {[%clk 00:15:21]} 5.
O-O {[%clk 00:15:12]} {[%emt 00:00:04]} O-O {[%clk 00:15:25]} {[%emt 00:00:01]}
6. c4 {[%clk 00:13:43]} {[%emt 00:01:33]} c6 {[%clk 00:14:34]} {[%emt
00:00:57]} 7. Nc3 {[%clk 00:13:09]} {[%emt 00:00:38]} Nbd7 {[%clk 00:13:44]}
{[%emt 00:00:56]} 8. cxd5 {[%clk 00:13:05]} {[%emt 00:00:09]} cxd5 {[%clk
00:13:46]} {[%emt 00:00:03]} 9. b3 {[%clk 00:12:44]} {[%emt 00:00:25]} a6
{[%clk 00:13:21]} {[%emt 00:00:31]} 10. Bb2 {[%clk 00:12:15]} {[%emt 00:00:33]}
e6 {[%clk 00:12:49]} {[%emt 00:00:38]} 11. Re1 {[%clk 00:11:25]} {[%emt
00:00:53]} b5 {[%clk 00:12:41]} {[%emt 00:00:14]} 12. Qd3 {[%clk 00:10:40]}
{[%emt 00:00:50]} Bb7 {[%clk 00:12:06]} {[%emt 00:00:41]} 13. Nd2 {[%clk
00:09:57]} {[%emt 00:00:46]} Re8 {[%clk 00:11:05]} {[%emt 00:01:07]} 14. f4
{[%clk 00:09:46]} {[%emt 00:00:15]} Qb6 {[%clk 00:10:46]} {[%emt 00:00:24]} 15.
e3 {[%clk 00:09:02]} {[%emt 00:00:48]} Bc6 {[%clk 00:09:44]} {[%emt 00:01:09]}
16. b4 {[%clk 00:06:53]} {[%emt 00:02:14]} a5 {[%clk 00:07:44]} {[%emt
00:02:04]} 17. a3 {[%clk 00:06:56]} {[%emt 00:00:02]} a4 {[%clk 00:07:37]}
{[%emt 00:00:12]} 18. Bf3 {[%clk 00:06:30]} {[%emt 00:00:29]} Rab8 {[%clk
00:06:25]} {[%emt 00:01:19]} 19. Kg2 {[%clk 00:06:31]} {[%emt 00:00:05]} Qd8
{[%emt 00:00:25]} 20. e4 {[%clk 00:06:01]} {[%emt 00:00:33]} dxe4 {[%clk
00:05:33]} {[%emt 00:00:38]} 21. Ndxe4 {[%clk 00:06:01]} {[%emt 00:00:05]} Nxe4
{[%clk 00:05:36]} {[%emt 00:00:02]} 22. Nxe4 {[%clk 00:05:45]} {[%emt
00:00:20]} Bxe4 {[%clk 00:05:19]} {[%emt 00:00:23]} 23. Bxe4 {[%clk 00:05:41]}
{[%emt 00:00:08]} Nf6 {[%clk 00:05:17]} {[%emt 00:00:07]} 24. Bc6 {[%clk
00:05:17]} {[%emt 00:00:29]} Re7 {[%clk 00:04:30]} {[%emt 00:00:53]} 25. Bxb5
{[%clk 00:05:04]} {[%emt 00:00:18]} Qd5+ {[%clk 00:04:32]} {[%emt 00:00:03]} 26.
Kg1 {[%clk 00:04:21]} {[%emt 00:00:47]} Qxb5 {[%clk 00:04:34]} {[%emt
00:00:04]} 27. Qxb5 {[%clk 00:04:11]} {[%emt 00:00:16]} Rxb5 {[%clk 00:04:37]}
{[%emt 00:00:01]} 28. Rac1 {[%clk 00:04:11]} {[%emt 00:00:04]} Re8 {[%clk
00:04:17]} {[%emt 00:00:26]} 29. Rc5 {[%clk 00:04:00]} {[%emt 00:00:15]} Reb8
{[%clk 00:04:15]} {[%emt 00:00:07]} 30. Rec1 {[%clk 00:03:57]} {[%emt
00:00:08]} Ne4 {[%clk 00:03:03]} {[%emt 00:01:17]} 31. Rxb5 {[%clk 00:03:48]}
{[%emt 00:00:14]} Rxb5 {[%clk 00:03:06]} {[%emt 00:00:02]} 32. Rc8+ {[%clk
00:03:50]} {[%emt 00:00:03]} Bf8 {[%clk 00:03:10]} {[%emt 00:00:02]} 33. Ra8
{[%clk 00:03:47]} {[%emt 00:00:07]} Nd2 {[%clk 00:02:34]} {[%emt 00:00:41]} 34.
Rxa4 {[%clk 00:03:40]} {[%emt 00:00:12]} Nc4 {[%clk 00:02:32]} {[%emt
00:00:07]} 35. Bc1 {[%clk 00:03:43]} {[%emt 00:00:01]} Kg7 {[%clk 00:02:15]}
{[%emt 00:00:22]} 36. Ra8 {[%clk 00:03:41]} {[%emt 00:00:08]} Be7 {[%clk
00:02:13]} {[%emt 00:00:08]} 37. Kf1 {[%clk 00:03:33]} {[%emt 00:00:11]} Bf6
{[%clk 00:02:16]} {[%emt 00:00:03]} 38. Ke2 {[%clk 00:03:29]} {[%emt 00:00:08]}
Rd5 {[%clk 00:02:11]} {[%emt 00:00:11]} 39. a4 {[%clk 00:03:18]} {[%emt
00:00:16]} Rxd4 {[%clk 00:01:55]} {[%emt 00:00:20]} 40. b5 {[%clk 00:03:14]}
{[%emt 00:00:08]} Nb6 {[%clk 00:01:51]} {[%emt 00:00:10]} 41. Ra6 {[%clk
00:03:16]} {[%emt 00:00:03]} Nxa4 {[%clk 00:01:50]} {[%emt 00:00:06]} 42. Be3
{[%clk 00:03:12]} {[%emt 00:00:08]} Re4 {[%clk 00:01:40]} {[%emt 00:00:16]} 43.
Kf3 {[%clk 00:03:02]} {[%emt 00:00:14]} Rb4 {[%clk 00:01:38]} {[%emt 00:00:08]}
44. b6 {[%clk 00:03:01]} {[%emt 00:00:06]} Nc3 {[%clk 00:01:23]} {[%emt
00:00:20]} 45. Ra7 {[%clk 00:02:51]} {[%emt 00:00:14]} Nd5 {[%clk 00:01:18]}
{[%emt 00:00:10]} 46. b7 {[%clk 00:02:51]} {[%emt 00:00:05]} Nxe3 {[%clk
00:01:17]} {[%emt 00:00:07]} 0-1